bitfinex/quotes_ETHUSD_20250730
["timestamp","ask_amount","ask_price","bid_price","bid_amount"]
[1753907725897,1.99758024,3771.6,3771.5,0.001]
[1753907728399,41.73838262,3771.6,3771.5,0.001]
[1753907729997,42.28838262,3771.6,3771.5,0.001]
[1753907730200,44.38977725,3771.6,3771.5,0.001]
[1753907730431,14.38977725,3771.6,3771.5,0.001]
[1753907730701,44.38977725,3771.6,3771.5,0.001]
[1753907731203,16.41938262,3771.6,3771.5,0.001]
[1753907731363,46.41938262,3771.6,3771.5,0.001]
[1753907731566,41.73838262,3771.6,3771.5,0.001]
[1753907731795,45.86938262,3771.6,3771.5,0.001]
[1753907732687,41.73838262,3771.6,3771.5,0.001]
[1753907732917,45.86938262,3771.6,3771.5,0.001]
[1753907733493,52.86938262,3771.6,3771.5,0.001]
[1753907733694,48.73838262,3771.6,3771.5,0.001]
[1753907733929,46.95548024,3771.6,3771.5,0.001]
[1753907737752,14.131,3771.6,3771.5,0.001]
[1753907737951,11.131,3771.6,3771.5,0.487]
[1753907738157,11.131,3771.6,3771.5,0.001]
[1753907738749,14.131,3771.6,3771.5,0.001]
[1753907739252,15.0492,3771.6,3771.5,0.001]
[1753907739460,48.43976461,3771.6,3771.5,0.001]
[1753907739814,41.57256461,3771.6,3771.5,0.001]
[1753907741238,11.57256461,3771.6,3771.5,0.001]
[1753907741441,41.57256461,3771.6,3771.5,0.001]
[1753907742140,30.0,3771.2,3770.1,0.04]
[1753907742385,3.0,3771.0,3770.1,0.04]
[1753907742654,3.0,3770.8,3770.2,0.486]
[1753907742866,3.0,3770.6,3770.2,0.486]
[1753907743066,3.0,3770.6,3770.3,0.486]
[1753907743459,3.0,3770.6,3770.1,0.04]
[1753907743655,3.0,3770.8,3770.4,0.486]
[1753907743880,3.0,3770.8,3770.4,0.5991]
[1753907744176,3.0,3770.8,3770.5,0.7893]
[1753907744382,3.0,3770.8,3770.6,0.486]
[1753907744681,3.0,3770.8,3770.5,0.7893]
[1753907744853,3.0,3770.8,3770.6,0.486]
[1753907745188,3.0,3770.8,3770.7,0.486]
[1753907746885,3.0,3770.8,3770.5,0.7893]
[1753907747189,3.0,3770.8,3770.5,1.2824]
[1753907747362,3.0,3770.6,3770.1,0.04]
[1753907747679,3.0,3770.4,3770.1,0.04]
[1753907748192,3.0,3770.4,3770.1,0.5331]
[1753907748895,3.0,3770.4,3770.2,0.4931]
[1753907749198,3.0,3770.4,3770.1,0.04]
[1753907749199,4.13,3770.5,3770.3,0.4931]
[1753907749493,4.13,3770.5,3770.4,0.4931]
[1753907750004,4.13,3770.8,3770.4,0.4931]
[1753907750167,3.0,3770.7,3770.4,0.4931]
[1753907750892,3.0,3770.7,3770.2,0.4931]
[1753907751068,3.0,3770.7,3770.3,0.4931]
[1753907751394,3.0,3770.7,3770.4,0.4931]
[1753907751888,0.9165,3771.0,3770.4,0.4931]
[1753907752092,0.1328,3770.5,3770.4,0.4931]
[1753907752459,0.1328,3770.5,3770.1,0.04]
[1753907752658,0.1328,3770.2,3770.1,0.5331]
[1753907753506,0.1328,3770.2,3770.1,0.04]
[1753907753910,0.1328,3770.2,3770.1,0.5331]
[1753907756717,1.0493,3770.2,3770.1,0.04]
[1753907757580,4.0493,3770.2,3770.1,0.04]
[1753907757917,4.49167,3770.2,3770.1,0.04]
[1753907758215,4.0493,3770.2,3770.1,0.04]
[1753907758401,3.5984,3770.2,3770.1,0.04]
[1753907758574,3.1328,3770.2,3770.1,0.04]
[1753907759514,4.0493,3770.2,3770.1,0.04]
[1753907760106,3.5984,3770.2,3770.1,0.04]
[1753907760280,4.0493,3770.2,3770.1,0.04]
[1753907762716,4.86713,3770.2,3770.1,0.04]
[1753907762916,5.66693,3770.2,3770.1,0.04]
[1753907763297,6.03208183,3770.2,3770.1,0.04]
[1753907763499,36.03208183,3770.2,3770.1,0.04]
[1753907764398,6.03208183,3770.2,3770.1,0.04]
[1753907764784,36.03208183,3770.2,3770.1,0.04]
[1753907766618,36.03208183,3770.2,3770.1,0.041]
[1753907769208,54.77346147,3770.2,3770.1,0.041]
[1753907769432,52.4896292,3770.2,3770.1,0.041]
[1753907769629,55.14200838,3770.2,3770.1,0.041]
[1753907770746,52.4896292,3770.2,3770.1,0.041]
[1753907770949,52.06766692,3770.2,3770.1,0.041]
[1753907771936,22.06766692,3770.2,3770.1,0.041]
[1753907772136,52.06766692,3770.2,3770.1,0.041]
[1753907772543,52.61766692,3770.2,3770.1,0.041]
[1753907772754,59.86588635,3770.2,3770.1,0.041]
[1753907772919,58.69912001,3770.2,3770.1,0.041]
[1753907773250,59.06766692,3770.2,3770.1,0.041]
[1753907773453,59.31586596,3770.2,3770.1,0.041]
[1753907774039,59.31586925,3770.2,3770.1,0.041]
[1753907774240,33.7998,3769.5,3769.1,0.04]
[1753907774442,33.1328,3769.2,3769.1,0.04]
[1753907774628,7.2618,3769.2,3769.1,0.04]
[1753907774955,2.789,3768.4,3766.9,0.4931]
[1753907775158,4.14,3768.3,3767.0,1.4334]
[1753907775318,0.7998,3768.6,3767.0,1.91380029]
[1753907775521,4.14,3768.5,3767.2,0.7872]
[1753907775720,3.0,3768.4,3767.3,1.2227442]
[1753907776060,0.9165,3768.9,3767.6,0.7872]
[1753907776243,0.9165,3768.9,3767.7,0.6462]
[1753907776244,30.0,3768.6,3767.7,0.6462]
[1753907776554,3.0,3768.3,3767.8,0.4931]
[1753907776770,3.0,3768.1,3767.9,0.1531]
[1753907776920,7.0,3768.4,3768.0,0.5925]
[1753907776921,3.0,3768.3,3768.0,0.5925]
[1753907777121,3.0,3768.3,3768.2,0.7872]
[1753907777320,3.0,3768.3,3767.8,0.7872]
[1753907777618,4.14,3768.2,3767.2,0.9403]
[1753907777817,3.0,3768.1,3767.4,0.1531]
[1753907778034,4.141,3768.0,3767.4,0.1531]
[1753907778280,3.0,3767.9,3767.2,0.7872]
[1753907778735,9.02339837,3768.5,3767.2,0.9403]
[1753907778736,3.0,3767.7,3767.2,0.9403]
[1753907778934,3.0,3767.5,3766.8,0.7654]
[1753907779176,3.953,3768.3,3766.1,0.04]
[1753907779177,0.8287,3767.3,3766.1,0.04]
[1753907779370,3.0,3767.1,3766.2,0.4894]
[1753907779770,3.0,3767.1,3766.4,0.7654]
[1753907780070,3.0,3767.1,3766.5,0.78594513]
[1753907780271,3.0,3767.1,3766.6,0.4894]
[1753907780482,3.0,3767.3,3766.7,0.6425]
[1753907780775,3.0,3767.5,3766.8,0.6425]
[1753907780975,3.0,3767.5,3766.8,0.1531]
[1753907781150,3.0,3767.5,3766.9,0.4894]
[1753907781552,3.0,3767.5,3767.0,0.7654]
[1753907781890,3.0,3767.7,3767.1,0.78329]
[1753907782043,3.0,3767.7,3767.1,0.1531]
[1753907782386,0.4885,3768.6,3767.1,0.1531]
[1753907782387,4.143,3768.0,3767.2,0.51594491]
[1753907782553,3.0,3768.0,3767.3,0.9185]
[1753907782869,4.142,3768.2,3767.4,0.65938799]
[1753907783097,4.142,3768.3,3767.5,0.4894]
[1753907783285,3.0,3768.2,3767.5,0.4894]
[1753907783483,4.142,3768.3,3767.6,0.02654209]
[1753907783794,3.0,3768.2,3767.6,0.15513445]
[1753907783996,3.0,3768.2,3767.7,0.4894]
[1753907784207,0.4645,3768.7,3767.8,0.4894]
[1753907784364,4.141,3768.6,3767.8,0.4894]
[1753907784565,3.0,3768.5,3767.8,0.4894]
[1753907784766,0.1328,3767.9,3767.6,0.15513445]
[1753907784987,0.1328,3767.9,3767.7,0.4894]
[1753907785506,0.1328,3767.9,3767.8,1.2548]
[1753907785706,0.1328,3767.9,3767.8,1.39579345]
[1753907788725,3.0,3768.5,3767.8,0.90639345]
[1753907788874,0.1328,3768.1,3767.8,0.7654]
[1753907789274,0.1328,3768.1,3767.9,0.4894]
[1753907789787,0.1328,3768.1,3768.0,0.4894]
[1753907790528,0.4645,3768.8,3768.0,0.4894]
[1753907790673,0.1328,3768.4,3768.1,1.3154]
[1753907790875,0.1328,3768.8,3768.4,0.7654]
[1753907791383,0.1328,3768.8,3768.5,0.4894]
[1753907791583,0.042,3768.9,3768.7,0.7654]
[1753907791791,0.042,3768.9,3768.8,0.02653364]
[1753907791987,0.042,3768.9,3768.8,0.657347]
[1753907792318,0.042,3768.9,3768.8,2.125847]
[1753907793073,0.04,3769.9,3768.9,0.55]
[1753907793270,0.04,3769.9,3769.3,0.8152]
[1753907793612,0.04,3769.9,3769.8,1.498]
[1753907794314,0.04,3769.9,3769.8,0.948]
[1753907794622,0.04,3769.9,3769.8,0.8152]
[1753907797924,0.04,3769.9,3769.8,1.3046]
[1753907798148,0.04,3769.9,3769.8,1.3311266]
[1753907798396,0.04,3769.9,3769.8,1.45099266]
[1753907799228,0.04,3769.9,3769.8,0.96159266]
[1753907800703,0.04,3769.9,3769.8,1.45099266]
[1753907801616,0.04,3769.9,3769.8,2.15409266]
[1753907802800,0.04,3769.9,3769.8,6.13399266]
[1753907804541,0.04,3769.9,3769.8,5.64459266]
[1753907804743,0.04,3769.9,3769.8,1.51159266]
[1753907804919,0.04,3769.9,3769.8,5.64459266]
[1753907805843,0.04,3769.9,3769.8,6.13399266]
[1753907806140,0.04,3769.9,3769.8,6.13099266]
[1753907806715,0.04,3769.9,3769.8,2.15409266]
[1753907806920,0.04,3769.9,3769.8,6.12999266]
[1753907808446,0.04,3769.9,3769.8,2.00099266]
[1753907808743,0.04,3769.9,3769.8,6.12999266]
[1753907809841,0.04,3769.9,3769.8,12.20227777]
[1753907812746,0.042,3769.9,3769.8,12.20227777]
[1753907813245,0.042,3769.9,3769.8,12.20127777]
[1753907816150,0.042,3769.9,3769.8,14.85393838]
[1753907816545,0.002,3770.3,3770.0,2.65250101]
[1753907816707,0.002,3770.3,3770.2,7.28418511]
[1753907816912,0.002,3770.3,3770.2,10.06936429]
[1753907817114,0.002,3770.3,3770.2,8.03908511]
[1753907817354,0.002,3770.3,3770.2,10.69146429]
[1753907817519,0.04,3770.9,3770.3,3.55]
[1753907817720,0.04,3770.9,3770.8,1.365]
[1753907817920,0.04,3770.9,3770.8,5.6258]
[1753907818764,0.04,3770.9,3770.8,6.2479]
[1753907819453,0.04,3770.9,3770.8,11.89985714]
[1753907819616,0.04,3770.9,3770.8,9.53081266]
[1753907819816,0.04,3770.9,3770.8,5.40281266]
[1753907820017,0.04,3770.9,3770.8,1.78071266]
[1753907820243,0.04,3770.9,3770.8,5.90871266]
[1753907820572,0.04,3770.9,3770.8,12.29689777]
[1753907821553,0.04,3770.9,3770.8,5.90771266]
[1753907821921,0.04,3770.9,3770.8,1.78071266]
[1753907822158,0.04,3770.9,3770.8,5.90771266]
[1753907822842,0.04,3770.9,3770.8,6.37671266]
[1753907823657,0.002,3771.5,3770.8,6.37671266]
[1753907823658,0.002,3771.5,3771.4,3.20153523]
[1753907823877,0.002,3771.5,3771.4,10.44000046]
[1753907824036,0.002,3771.5,3771.4,13.53402034]
[1753907824354,0.002,3771.5,3771.4,17.81612034]
[1753907826266,0.002,3771.5,3771.4,17.66302034]
[1753907826476,0.002,3771.5,3771.4,17.95165455]
[1753907827458,0.953,3772.6,3772.1,0.55]
[1753907827627,0.002,3773.4,3772.0,0.8115]
[1753907827628,0.002,3773.4,3772.8,0.1328]
[1753907827965,0.953,3772.8,3772.5,0.1328]
[1753907828143,0.953,3772.7,3772.1,0.55]
[1753907828347,0.1348,3773.4,3772.7,0.1328]
[1753907828527,0.1348,3773.4,3772.8,4.127]
[1753907828733,0.1348,3773.4,3772.8,4.2588]
[1753907828933,0.993,3772.9,3772.8,4.2588]
[1753907830935,0.993,3772.9,3772.8,0.1328]
[1753907831132,0.993,3772.9,3772.8,4.2588]
[1753907831927,0.993,3772.9,3772.8,5.23733076]
[1753907832263,0.002,3773.4,3772.9,0.55]
[1753907832571,0.002,3773.4,3772.8,6.07533627]
[1753907832572,0.002,3773.4,3773.1,0.55]
[1753907832732,0.002,3773.4,3773.3,0.55]
[1753907832930,0.002,3773.4,3773.3,7.43998711]
[1753907833204,0.002,3773.4,3773.3,9.03908382]
[1753907833326,0.002,3773.4,3773.3,3.11989871]
[1753907833527,0.002,3773.4,3773.3,5.6193]
[1753907838635,0.002,3773.4,3773.3,6.1056]
[1753907838848,0.002,3773.4,3773.3,11.90890009]
[1753907839677,0.002,3773.4,3773.3,12.04257081]
[1753907840040,0.002,3773.8,3773.7,3.19991917]
[1753907840259,0.002,3773.8,3773.7,17.86469215]
[1753907840460,0.002,3773.8,3773.7,15.67457379]
[1753907841778,0.002,3773.8,3773.7,18.32449296]
[1753907842262,0.002,3773.8,3773.7,21.47759296]
[1753907846958,0.04,3774.9,3773.7,21.47759296]
[1753907846959,0.04,3774.9,3774.6,1.3679]
[1753907847160,0.04,3774.9,3774.8,0.6828]
[1753907847566,0.513,3774.9,3774.8,0.6828]
[1753907847799,0.9753,3774.9,3774.8,0.6828]
[1753907850086,0.04,3774.9,3774.8,0.6828]
[1753907850404,0.04,3774.9,3774.8,0.70929146]
[1753907850599,0.04,3774.9,3774.8,2.17879563]
[1753907850812,0.04,3774.9,3774.8,5.02551735]
[1753907851012,0.04,3774.9,3774.8,5.51181735]
[1753907851305,0.04,3774.9,3774.8,5.48532589]
[1753907851604,0.04,3774.9,3774.8,6.30322589]
[1753907852510,0.473,3775.5,3775.2,0.55]
[1753907852666,0.473,3775.5,3775.4,0.55]
[1753907852875,0.9353,3775.5,3775.4,0.6828]
[1753907854380,1.7229,3775.5,3775.4,0.1328]
[1753907854712,1.7229,3775.5,3775.4,4.2548]
[1753907854916,1.7229,3775.5,3775.4,4.68028]
[1753907855075,1.7229,3775.5,3775.4,5.23028]
[1753907855271,1.7229,3775.5,3775.4,0.55828]
[1753907855477,1.7229,3775.5,3775.4,0.1328]
[1753907855676,1.7229,3775.5,3775.4,4.2548]
[1753907856520,0.1328,3776.0,3775.5,0.55]
[1753907856521,0.513,3775.9,3775.5,0.55]
[1753907856689,0.9353,3775.8,3775.7,0.55]
[1753907856894,0.9353,3775.8,3775.7,0.6828]
[1753907864044,0.9353,3775.8,3775.7,4.2538]
[1753907864197,0.9353,3775.8,3775.7,0.1328]
[1753907864198,1.7229,3775.8,3775.7,0.1328]
[1753907864393,1.7229,3775.8,3775.7,4.2528]
[1753907864799,1.7229,3775.8,3775.7,0.1328]
[1753907865112,1.7229,3775.8,3774.0,0.4863]
[1753907865113,0.7876,3775.7,3775.1,0.1328]
[1753907865436,0.7876,3775.5,3774.8,4.12]
[1753907865638,0.7876,3775.2,3774.8,5.32176586]
[1753907865865,0.9353,3775.1,3774.8,5.32176586]
[1753907866167,0.9353,3775.0,3774.8,4.2528]
[1753907866321,0.7876,3775.2,3774.8,4.2528]
[1753907866526,0.9353,3774.9,3774.8,4.2528]
[1753907866733,1.2419,3775.5,3774.8,4.12]
[1753907866940,0.8972,3775.4,3774.9,0.45177076]
[1753907867327,0.7876,3775.5,3775.3,0.1328]
[1753907867635,0.7876,3775.5,3775.3,4.2528]
[1753907867838,0.7876,3775.5,3775.3,4.67808]
[1753907868054,0.8972,3775.4,3775.3,4.67808]
[1753907869377,0.8972,3775.4,3775.3,0.1328]
[1753907870565,0.7552,3775.3,3775.0,0.1328]
[1753907870729,1.6524,3775.3,3775.0,0.1328]
[1753907870931,0.8972,3775.2,3775.0,0.1328]
[1753907871247,0.8972,3775.2,3774.9,4.12]
[1753907871433,1.6524,3775.1,3774.9,0.1328]
[1753907871627,1.6524,3775.1,3773.9,0.8099]
[1753907871628,0.7552,3774.9,3773.7,0.8099]
[1753907871823,0.8972,3774.8,3774.6,0.1328]
[1753907872228,0.7552,3774.9,3774.6,0.1328]
[1753907872436,0.8972,3774.7,3774.6,0.1328]
[1753907874244,1.6524,3774.7,3774.3,4.2528]
[1753907874469,0.7552,3774.7,3774.3,4.2528]
[1753907874648,0.8972,3774.6,3774.3,4.2528]
[1753907874968,0.8972,3774.5,3774.3,4.2528]
[1753907875140,0.4429,3774.4,3774.3,4.2528]
[1753907875341,0.8972,3774.4,3774.3,4.67808]
[1753907875531,0.4429,3774.4,3774.3,4.67808]
[1753907875932,0.8972,3774.4,3774.3,4.67808]
[1753907876171,0.8972,3774.4,3774.3,0.55808]
[1753907876330,0.8972,3774.4,3774.3,0.1328]
[1753907876532,0.1328,3774.9,3774.4,0.55]
[1753907876745,0.8972,3774.8,3774.4,0.02649427]
[1753907876962,0.8972,3774.8,3774.3,0.55]
[1753907877159,0.7552,3775.1,3774.4,0.48660152]
[1753907877364,0.8972,3774.7,3774.4,0.48660152]
[1753907877564,0.8972,3774.6,3774.4,0.48660152]
[1753907877769,0.4543,3775.0,3774.5,0.02649357]
[1753907877942,0.4429,3774.9,3774.5,0.02649357]
[1753907878151,0.8972,3775.3,3774.7,0.55]
[1753907878478,0.8972,3775.3,3774.7,4.69649217]
[1753907878632,0.8972,3775.3,3774.7,4.67]
[1753907879551,0.4429,3775.3,3774.7,4.67]
[1753907879748,0.4429,3775.3,3774.8,0.61071695]
[1753907880079,0.4429,3775.3,3774.9,0.57649076]
[1753907880366,0.4563,3775.5,3774.9,1.05009076]
[1753907880553,0.002,3775.5,3774.9,0.57649076]
[1753907881241,0.002,3775.5,3774.9,0.55]
[1753907881449,0.002,3775.5,3775.1,0.55]
[1753907881659,0.002,3775.5,3775.2,4.12]
[1753907881968,0.8972,3775.4,3775.2,4.12]
[1753907882164,0.002,3775.5,3775.2,4.12]
[1753907882367,0.8972,3775.4,3775.2,4.12]
[1753907882533,0.8972,3775.3,3775.2,4.12]
[1753907883262,0.7581,3775.2,3775.1,4.12]
[1753907883465,1.6553,3775.2,3775.1,4.12]
[1753907884370,1.6553,3775.2,3775.0,4.12]
[1753907884618,0.8972,3775.1,3775.0,4.12]
[1753907886678,0.8972,3775.1,3775.0,4.2528]
[1753907887477,0.7581,3775.0,3774.3,0.1328]
[1753907887659,0.8972,3775.0,3774.2,0.001]
[1753907887860,0.7581,3774.6,3774.2,0.001]
[1753907888385,0.8972,3774.5,3774.2,0.001]
[1753907888892,0.8972,3774.4,3774.2,0.001]
[1753907889397,0.7581,3774.6,3774.2,0.001]
[1753907889556,0.8972,3774.3,3774.2,0.001]
[1753907890390,1.6553,3774.3,3774.2,0.001]
[1753907890555,1.83411,3774.3,3774.2,0.001]
[1753907890755,4.83411,3774.3,3774.2,0.001]
[1753907890960,1.83411,3774.3,3774.2,0.001]
[1753907893196,4.83411,3774.3,3774.2,0.001]
[1753907893562,34.83411,3774.3,3774.2,0.001]
[1753907895007,37.61461425,3774.3,3774.2,0.001]
[1753907895381,34.96511633,3774.3,3774.2,0.001]
[1753907895598,3.0,3774.0,3773.1,0.04]
[1753907895765,0.1328,3773.2,3773.1,0.04]
[1753907895967,0.8909,3773.2,3773.1,0.04]
[1753907896196,8.9091,3773.2,3773.1,0.04]
[1753907896392,38.9091,3773.2,3773.1,0.04]
[1753907896700,41.47936461,3773.2,3773.1,0.04]
[1753907899620,11.47936461,3773.2,3773.1,0.04]
[1753907899807,38.9091,3773.2,3773.1,0.04]
[1753907901717,8.9091,3773.2,3773.1,0.04]
[1753907901933,38.9091,3773.2,3773.1,0.04]
[1753907903613,0.17881,3774.3,3773.1,0.6866]
[1753907903923,0.8287,3774.1,3773.2,1.282]
[1753907904075,0.8287,3774.1,3773.3,0.520002]
[1753907904275,3.8287,3774.1,3773.3,0.4935]
[1753907905390,0.8287,3774.1,3773.3,0.4935]
[1753907905714,3.8287,3774.1,3773.3,0.4935]
[1753907905883,0.8287,3774.1,3773.3,0.4935]
[1753907906089,3.8287,3774.1,3773.4,0.14751]
[1753907906608,3.8287,3774.1,3773.3,0.4935]
[1753907906807,0.9158,3774.0,3773.1,0.5335]
[1753907907006,0.9158,3774.0,3773.1,0.5600034]
[1753907907783,0.9158,3774.0,3773.1,0.5335]
[1753907908194,0.9158,3774.0,3773.1,0.5600034]
[1753907908452,0.9158,3774.0,3773.2,0.13495034]
[1753907908723,0.4865,3773.9,3773.2,0.13495034]
[1753907908889,0.9158,3773.9,3773.2,0.13495034]
[1753907911450,0.4293,3773.9,3773.3,0.520002]
[1753907911739,0.4293,3773.9,3773.3,0.4935]
[1753907912425,4.126,3774.2,3773.4,0.02650129]
[1753907912607,4.126,3774.2,3773.5,0.7885]
[1753907912825,0.8287,3774.4,3773.6,0.51999989]
[1753907913027,4.121,3774.5,3773.6,0.51999989]
[1753907913190,0.9158,3774.6,3773.6,0.51999989]
[1753907913389,4.121,3774.5,3773.6,0.51999989]
[1753907913597,0.1328,3774.0,3773.6,0.51999989]
[1753907913801,0.1328,3774.0,3773.7,0.65359551]
[1753907914061,0.1328,3774.0,3773.8,0.02649848]
[1753907914263,0.1328,3774.3,3773.7,0.31319551]
[1753907914404,0.1328,3774.3,3773.9,0.4935]
[1753907914605,0.1328,3774.3,3773.8,0.1328]
[1753907914814,0.4293,3774.8,3773.9,0.4935]
[1753907915036,0.7943,3774.9,3774.0,1.38159708]
[1753907915037,0.1328,3774.9,3774.0,1.38159708]
[1753907915337,1.53415811,3775.4,3774.0,1.38159708]
[1753907915338,0.7943,3775.6,3774.3,0.8051]
[1753907915501,0.1328,3775.1,3774.6,0.1328]
[1753907916118,0.4293,3775.0,3774.6,0.1328]
[1753907916723,0.6193,3775.1,3774.6,0.1328]
[1753907916932,0.1328,3775.1,3774.6,0.6263]
[1753907917347,0.1328,3775.1,3774.6,0.1328]
[1753907917517,0.1328,3775.1,3774.7,0.4935]
[1753907917968,0.4293,3775.7,3774.8,1.32509146]
[1753907918169,0.5265,3775.9,3774.9,0.13250915]
[1753907918452,0.24766945,3775.8,3775.0,0.02649006]
[1753907918862,0.24766945,3775.8,3774.9,0.13250915]
[1753907919062,0.24766945,3775.8,3775.0,0.51999006]
[1753907919441,0.67696945,3775.8,3775.0,0.4935]
[1753907919672,1.16346945,3775.7,3775.0,0.4935]
[1753907919970,0.4313,3775.5,3775.0,0.4935]
[1753907920151,0.49555837,3775.4,3775.0,0.4935]
[1753907920469,0.49555837,3775.4,3774.7,0.55]
[1753907920470,0.67696945,3775.3,3774.7,0.55]
[1753907920769,0.24766945,3775.2,3774.7,0.55]
[1753907921066,0.24766945,3775.2,3774.4,0.8051]
[1753907921271,1.16346945,3775.1,3774.4,0.8051]
[1753907921479,0.24766945,3775.0,3774.5,0.4935]
[1753907921788,0.4293,3775.3,3774.6,0.4935]
[1753907921986,0.24791121,3775.2,3774.6,0.4935]
[1753907922763,0.24791121,3775.2,3774.5,0.14781943]
[1753907923271,0.73441121,3775.2,3774.5,0.14781943]
[1753907923432,0.24791121,3775.1,3774.5,0.14781943]
[1753907923637,0.4293,3775.0,3774.4,0.8051]
[1753907923846,0.24791121,3774.9,3774.4,0.8051]
[1753907924046,0.9158,3775.0,3774.4,0.8051]
[1753907924373,0.24796115,3774.9,3774.4,0.8051]
[1753907924665,0.67726115,3774.9,3774.4,0.8051]
[1753907924970,0.4293,3774.9,3774.4,1.2986]
[1753907925126,0.4293,3775.4,3774.5,0.4935]
[1753907925332,0.49591712,3775.3,3774.5,0.4935]
[1753907925527,0.4293,3775.4,3774.6,0.14517]
[1753907925765,0.4293,3775.4,3774.7,0.4935]
[1753907925968,0.24795296,3775.3,3774.7,0.51999217]
[1753907926274,0.49590592,3775.3,3774.7,0.51999217]
[1753907926565,0.002,3775.5,3774.8,0.02649146]
[1753907926743,0.24794154,3775.3,3774.9,0.4505]
[1753907926948,0.24794154,3775.3,3774.8,0.02649146]
[1753907927147,0.49587922,3775.3,3775.0,0.4505]
[1753907927340,0.002,3775.5,3775.0,0.4505]
[1753907927868,0.4443,3775.5,3775.0,0.4505]
[1753907928058,0.5771,3775.5,3775.0,0.4505]
[1753907928369,0.24795191,3775.3,3775.0,0.4505]
[1753907928605,0.5771,3775.5,3774.9,0.1328]
[1753907928775,0.4529,3775.4,3774.9,0.1328]
[1753907928975,0.49592511,3775.3,3774.9,0.1328]
[1753907929148,0.49592367,3775.2,3774.9,0.1328]
[1753907929352,0.24796113,3775.1,3774.9,0.1328]
[1753907929553,0.24796113,3775.0,3774.9,0.1328]
[1753907929756,0.24796113,3775.3,3774.9,0.1328]
[1753907929971,0.8952,3775.4,3774.9,0.1328]
[1753907930679,0.4423,3775.3,3774.9,0.1328]
[1753907930848,0.8952,3775.2,3774.9,0.1328]
[1753907931048,0.8952,3775.1,3774.7,0.1328]
[1753907931490,0.4423,3775.0,3774.7,0.1328]
[1753907931648,0.8952,3775.0,3774.7,0.1328]
[1753907931844,0.8952,3774.9,3774.4,0.8051]
[1753907932084,0.1328,3774.8,3774.4,1.24394]
[1753907932650,0.1328,3774.8,3774.5,0.4505]
[1753907933265,0.5751,3774.8,3774.3,0.1328]
[1753907933453,0.1328,3774.6,3774.0,0.9145]
[1753907933656,0.8952,3774.5,3774.0,0.9145]
[1753907933955,0.1328,3774.6,3774.0,1.41785]
[1753907934159,0.1328,3774.6,3774.0,1.86835]
[1753907934692,0.4423,3774.5,3774.0,1.41785]
[1753907934891,0.4423,3774.4,3774.0,1.41785]
[1753907935100,0.4423,3774.4,3774.0,0.63615]
[1753907935254,0.8952,3774.3,3773.7,4.9007]
[1753907935588,1.028,3774.3,3773.8,0.1328]
[1753907935900,0.4423,3774.2,3773.8,0.1328]
[1753907936129,0.8952,3774.2,3773.8,0.1328]
[1753907936757,0.4529,3774.2,3773.8,0.52425]
[1753907936994,0.8952,3774.1,3773.7,0.1328]
[1753907937491,0.8952,3774.0,3773.7,0.1328]
[1753907938592,0.4423,3774.0,3773.7,0.1328]
[1753907938762,0.5857,3774.3,3773.7,0.1328]
[1753907940293,0.4423,3774.9,3774.2,0.1328]
[1753907940595,0.4529,3774.8,3774.3,0.1328]
[1753907940963,0.8952,3774.7,3774.3,0.1328]
[1753907941302,0.1328,3775.0,3773.2,0.7817]
[1753907941303,0.1328,3774.4,3773.2,0.7817]
[1753907941484,0.1328,3773.8,3773.3,0.1328]
[1753907941666,0.8952,3773.7,3773.3,0.1328]
[1753907941993,0.4423,3773.7,3773.3,0.1328]
[1753907942363,0.1328,3773.8,3773.3,0.609802]
[1753907942556,0.7715,3774.2,3773.2,3.737854]
[1753907942760,0.5857,3774.1,3773.6,0.1328]
[1753907942963,0.4423,3774.3,3773.7,0.02649919]
[1753907943189,9.00858112,3775.9,3774.0,0.1328]
[1753907943190,1.028,3774.7,3774.0,0.1328]
[1753907943375,0.4529,3774.3,3773.4,0.55]
[1753907943575,0.8952,3774.3,3774.0,0.1328]
[1753907943801,0.1328,3774.5,3774.0,0.1328]
[1753907944030,0.1328,3774.8,3774.2,0.1328]
[1753907944303,0.1328,3774.8,3774.3,0.02649497]
[1753907944464,0.4423,3774.9,3774.3,0.02649497]
[1753907944664,1.028,3774.9,3774.3,0.02649497]
[1753907945877,0.5857,3774.9,3774.3,0.02649497]
[1753907946105,0.5857,3774.9,3774.6,0.1328]
[1753907946106,0.4529,3774.9,3774.6,0.1328]
[1753907946307,0.4423,3775.1,3774.6,0.1328]
[1753907946468,0.5857,3775.2,3774.7,0.02649217]
[1753907946668,0.4529,3775.1,3774.7,0.02649217]
[1753907947368,0.4423,3775.2,3774.6,0.02649287]
[1753907947607,0.4423,3775.2,3774.9,0.1328]
[1753907948184,0.8952,3775.2,3774.9,0.1328]
[1753907948722,0.8952,3775.1,3774.9,0.1328]
[1753907948890,0.1328,3775.4,3774.9,0.1328]
[1753907949095,0.8952,3775.0,3774.9,0.1328]
[1753907949782,0.4529,3775.2,3774.9,0.1328]
[1753907950128,0.8952,3775.2,3774.9,0.1328]
[1753907951239,0.4423,3775.2,3774.9,0.1328]
[1753907951399,0.8952,3775.1,3774.9,0.1328]